[Event "Late-Titled-Tuesday-Blitz-September-12-2023"]
[Site "Chess.com"]
[Date "2023.09.12"]
[Round "8"]
[White "Sinquefield"]
[Black "Nekoo04"]
[Result "1-0"]
[WhiteElo "2446"]
[BlackElo "2281"]
[TimeControl "180+1"]
[EndTime "15:23:33 PDT"]
[Termination "Sinquefield won on time"]

1. b3 {[%clk 0:02:54.8]} 1... e5 {[%clk 0:02:52.4]} 2. Bb2 {[%clk 0:02:55.7]}
2... d6 {[%clk 0:02:52.1]} 3. e3 {[%clk 0:02:56.3]} 3... Nf6 {[%clk 0:02:51.8]}
4. c4 {[%clk 0:02:53.3]} 4... Nbd7 {[%clk 0:02:50.8]} 5. Nc3 {[%clk 0:02:53.7]}
5... g6 {[%clk 0:02:48.2]} 6. g3 {[%clk 0:02:53.7]} 6... Bg7 {[%clk 0:02:48.1]}
7. Bg2 {[%clk 0:02:54.4]} 7... O-O {[%clk 0:02:48.7]} 8. Nge2 {[%clk 0:02:54.8]}
8... Re8 {[%clk 0:02:47.8]} 9. O-O {[%clk 0:02:55.4]} 9... c6 {[%clk 0:02:45.8]}
10. Qc2 {[%clk 0:02:52.6]} 10... Nf8 {[%clk 0:02:38.2]} 11. Rad1 {[%clk
0:02:49.4]} 11... Bf5 {[%clk 0:02:22.4]} 12. e4 {[%clk 0:02:43.1]} 12... Bd7
{[%clk 0:02:16.6]} 13. d4 {[%clk 0:02:42.6]} 13... exd4 {[%clk 0:02:13.8]} 14.
Nxd4 {[%clk 0:02:40.1]} 14... Bg4 {[%clk 0:02:00.4]} 15. f3 {[%clk 0:02:38.2]}
15... Bc8 {[%clk 0:01:58.2]} 16. Rfe1 {[%clk 0:02:34.2]} 16... Qb6 {[%clk
0:01:46.6]} 17. Kh1 {[%clk 0:02:27.6]} 17... Qc7 {[%clk 0:00:57.1]} 18. Ba3
{[%clk 0:02:19.1]} 18... a6 {[%clk 0:00:45.4]} 19. Nde2 {[%clk 0:01:25.1]} 19...
c5 {[%clk 0:00:33.2]} 20. Bb2 {[%clk 0:01:19.4]} 20... Ne6 {[%clk 0:00:24.8]}
21. Nd5 {[%clk 0:01:14.7]} 21... Nxd5 {[%clk 0:00:23.5]} 22. cxd5 {[%clk
0:01:13.7]} 22... Bxb2 {[%clk 0:00:19.1]} 23. Qxb2 {[%clk 0:01:14.6]} 23... Ng7
{[%clk 0:00:19]} 24. Rc1 {[%clk 0:01:12.4]} 24... f5 {[%clk 0:00:18]} 25. b4
{[%clk 0:01:07.8]} 25... b6 {[%clk 0:00:18]} 26. Nf4 {[%clk 0:01:00.5]} 26...
Bd7 {[%clk 0:00:09.4]} 27. bxc5 {[%clk 0:00:47.2]} 27... bxc5 {[%clk 0:00:08.1]}
28. Nd3 {[%clk 0:00:43.6]} 28... fxe4 {[%clk 0:00:05.2]} 29. fxe4 {[%clk
0:00:44.5]} 29... Bb5 {[%clk 0:00:05.3]} 30. Nf4 {[%clk 0:00:38.4]} 30... Re5
{[%clk 0:00:04.8]} 31. a4 {[%clk 0:00:32.2]} 31... Bxa4 {[%clk 0:00:03.2]} 32.
Nd3 {[%clk 0:00:32.8]} 32... Re7 {[%clk 0:00:01.7]} 33. e5 {[%clk 0:00:33.2]}
33... Bb5 {[%clk 0:00:02.2]} 34. Nxc5 {[%clk 0:00:23.6]} 34... dxc5 {[%clk
0:00:01.7]} 35. d6 {[%clk 0:00:24.1]} 35... Qd7 {[%clk 0:00:02.2]} 36. Bxa8
{[%clk 0:00:20.8]} 36... Re6 {[%clk 0:00:02.3]} 37. Bd5 {[%clk 0:00:20.3]} 37...
Bc6 {[%clk 0:00:01.7]} 38. Rxc5 {[%clk 0:00:16.4]} 1-0

[Event "Late-Titled-Tuesday-Blitz-September-12-2023"]
[Site "Chess.com"]
[Date "2023.09.12"]
[Round "8"]
[White "Al_Shima"]
[Black "zajka-molotok"]
[Result "0-1"]
[WhiteElo "2342"]
[BlackElo "2498"]
[TimeControl "180+1"]
[EndTime "15:23:34 PDT"]
[Termination "zajka-molotok won by resignation"]

1. b3 {[%clk 0:02:46]} 1... Nf6 {[%clk 0:02:56.9]} 2. Bb2 {[%clk 0:02:46.9]}
2... d5 {[%clk 0:02:55.5]} 3. e3 {[%clk 0:02:47]} 3... g6 {[%clk 0:02:55]} 4. c4
{[%clk 0:02:41.7]} 4... e6 {[%clk 0:02:54.8]} 5. Nf3 {[%clk 0:02:36.9]} 5... Bg7
{[%clk 0:02:54.9]} 6. Be2 {[%clk 0:02:36.7]} 6... O-O {[%clk 0:02:55]} 7. O-O
{[%clk 0:02:36.7]} 7... b6 {[%clk 0:02:55.1]} 8. d4 {[%clk 0:02:36.3]} 8... Bb7
{[%clk 0:02:54.9]} 9. Nbd2 {[%clk 0:02:36.1]} 9... Nbd7 {[%clk 0:02:54.8]} 10.
Rc1 {[%clk 0:02:34.8]} 10... c5 {[%clk 0:02:46.4]} 11. dxc5 {[%clk 0:02:27.5]}
11... Nxc5 {[%clk 0:02:45]} 12. cxd5 {[%clk 0:02:26.3]} 12... Nxd5 {[%clk
0:02:41.1]} 13. Bxg7 {[%clk 0:02:25.4]} 13... Kxg7 {[%clk 0:02:42]} 14. Qc2
{[%clk 0:02:22]} 14... Rc8 {[%clk 0:02:39.8]} 15. Qb2+ {[%clk 0:02:21.5]} 15...
Qf6 {[%clk 0:02:39.1]} 16. Qxf6+ {[%clk 0:02:21.2]} 16... Kxf6 {[%clk
0:02:34.7]} 17. Rc2 {[%clk 0:02:13.3]} 17... Ke7 {[%clk 0:02:30.2]} 18. Rfc1
{[%clk 0:02:12.6]} 18... Nb4 {[%clk 0:02:25.5]} 19. Rb2 {[%clk 0:02:03.8]} 19...
Nbd3 {[%clk 0:02:19.7]} 20. Bxd3 {[%clk 0:02:03.7]} 20... Nxd3 {[%clk
0:02:20.6]} 21. Rxc8 {[%clk 0:02:03.7]} 21... Rxc8 {[%clk 0:02:21.2]} 22. Rb1
{[%clk 0:02:02.8]} 22... Rc2 {[%clk 0:02:10.9]} 23. a3 {[%clk 0:01:54.8]} 23...
Bxf3 {[%clk 0:02:03.4]} 24. Nxf3 {[%clk 0:01:55.7]} 24... Nxf2 {[%clk
0:01:47.9]} 25. Nd4 {[%clk 0:01:55.3]} 25... Ra2 {[%clk 0:01:47]} 26. Nc6+
{[%clk 0:01:55.2]} 26... Kd7 {[%clk 0:01:40.4]} 27. Nxa7 {[%clk 0:01:55.1]}
27... Ng4 {[%clk 0:01:39.2]} 28. Rd1+ {[%clk 0:01:44.2]} 28... Ke8 {[%clk
0:01:33.8]} 29. Nc6 {[%clk 0:01:39.8]} 29... Rxg2+ {[%clk 0:01:32.6]} 30. Kxg2
{[%clk 0:01:32.7]} 30... Nxe3+ {[%clk 0:01:32.6]} 31. Kf3 {[%clk 0:01:32.5]}
31... Nxd1 {[%clk 0:01:33.5]} 32. a4 {[%clk 0:01:30.3]} 32... f6 {[%clk
0:01:29]} 33. b4 {[%clk 0:01:00]} 33... Kd7 {[%clk 0:01:26.8]} 34. Nd4 {[%clk
0:00:57]} 34... Nc3 {[%clk 0:01:19.5]} 35. a5 {[%clk 0:00:55.7]} 35... bxa5
{[%clk 0:01:20.4]} 36. bxa5 {[%clk 0:00:56.2]} 36... e5 {[%clk 0:01:17.9]} 37.
Nb3 {[%clk 0:00:53.9]} 37... Kc6 {[%clk 0:01:15]} 38. h4 {[%clk 0:00:50.7]}
38... Kb5 {[%clk 0:01:13.6]} 39. h5 {[%clk 0:00:47.7]} 39... Na4 {[%clk
0:01:06.1]} 40. h6 {[%clk 0:00:45.1]} 40... Nc5 {[%clk 0:01:05.4]} 41. Nd2
{[%clk 0:00:14]} 41... Kxa5 {[%clk 0:01:05.1]} 42. Nc4+ {[%clk 0:00:14.1]} 42...
Kb4 {[%clk 0:01:04.4]} 43. Nd6 {[%clk 0:00:15]} 43... Ne6 {[%clk 0:01:01.5]} 44.
Ne8 {[%clk 0:00:13.2]} 44... Ng5+ {[%clk 0:00:47.3]} 45. Kg4 {[%clk 0:00:06.9]}
45... Ne4 {[%clk 0:00:47.3]} 46. Kf3 {[%clk 0:00:02.9]} 46... f5 {[%clk
0:00:46.6]} 47. Nc7 {[%clk 0:00:01.2]} 47... Kc5 {[%clk 0:00:43]} 48. Ne6+
{[%clk 0:00:02.1]} 48... Kd6 {[%clk 0:00:41.1]} 49. Nf8 {[%clk 0:00:03]} 49...
Nf6 {[%clk 0:00:36.8]} 50. Kg3 {[%clk 0:00:03.9]} 50... Ke7 {[%clk 0:00:35.1]}
51. Nxg6+ {[%clk 0:00:03.1]} 51... hxg6 {[%clk 0:00:34.9]} 0-1

[Event "Late-Titled-Tuesday-Blitz-September-12-2023"]
[Site "Chess.com"]
[Date "2023.09.12"]
[Round "8"]
[White "Orest_Vovk"]
[Black "Mikhal867"]
[Result "0-1"]
[WhiteElo "2579"]
[BlackElo "2463"]
[TimeControl "180+1"]
[EndTime "15:23:35 PDT"]
[Termination "Mikhal867 won by checkmate"]

1. g4 {[%clk 0:02:55.8]} 1... c5 {[%clk 0:02:16.4]} 2. Bg2 {[%clk 0:02:54]} 2...
Nc6 {[%clk 0:02:14.9]} 3. h3 {[%clk 0:02:51.2]} 3... d5 {[%clk 0:02:12.3]} 4. c4
{[%clk 0:02:50.7]} 4... d4 {[%clk 0:02:12.1]} 5. Bxc6+ {[%clk 0:02:50.5]} 5...
bxc6 {[%clk 0:02:11.7]} 6. d3 {[%clk 0:02:50.7]} 6... h5 {[%clk 0:02:10.6]} 7.
Qa4 {[%clk 0:02:49.7]} 7... hxg4 {[%clk 0:02:04.5]} 8. hxg4 {[%clk 0:02:49]}
8... Rxh1 {[%clk 0:01:53.1]} 9. Qxc6+ {[%clk 0:02:48.2]} 9... Qd7 {[%clk
0:01:52.8]} 10. Qxh1 {[%clk 0:02:49.1]} 10... Bb7 {[%clk 0:01:51.3]} 11. Qh4
{[%clk 0:02:31.1]} 11... e5 {[%clk 0:01:42.4]} 12. Nd2 {[%clk 0:02:21.2]} 12...
Be7 {[%clk 0:01:40.8]} 13. g5 {[%clk 0:02:17.3]} 13... f5 {[%clk 0:01:32.3]} 14.
gxf6 {[%clk 0:01:44.9]} 14... Nxf6 {[%clk 0:01:23]} 15. Ngf3 {[%clk 0:01:44.1]}
15... Qf5 {[%clk 0:01:11.2]} 16. Qg5 {[%clk 0:01:32.6]} 16... Qh3 {[%clk
0:00:49.9]} 17. Qxe5 {[%clk 0:01:16.1]} 17... Qh1+ {[%clk 0:00:46.9]} 18. Nf1
{[%clk 0:01:13.7]} 18... Bxf3 {[%clk 0:00:44]} 19. exf3 {[%clk 0:01:13.5]} 19...
Qxf3 {[%clk 0:00:43.9]} 20. Qe2 {[%clk 0:01:12.8]} 20... Qh1 {[%clk 0:00:40.3]}
21. Bf4 {[%clk 0:00:59.2]} 21... Kf7 {[%clk 0:00:34.3]} 22. O-O-O {[%clk
0:00:55.3]} 22... Re8 {[%clk 0:00:32.9]} 23. Ng3 {[%clk 0:00:49.1]} 23... Qg2
{[%clk 0:00:30.1]} 24. Qd2 {[%clk 0:00:19.4]} 24... Bf8 {[%clk 0:00:29.4]} 25.
Bg5 {[%clk 0:00:14.3]} 25... Qf3 {[%clk 0:00:27.1]} 26. Bxf6 {[%clk 0:00:13.5]}
26... gxf6 {[%clk 0:00:25.6]} 27. Rh1 {[%clk 0:00:11.9]} 27... Bd6 {[%clk
0:00:20.3]} 28. Rh7+ {[%clk 0:00:09.5]} 28... Kg8 {[%clk 0:00:18.6]} 29. Rh4
{[%clk 0:00:05.9]} 29... Kf7 {[%clk 0:00:14.9]} 30. Qd1 {[%clk 0:00:03.7]} 30...
Bf4+ {[%clk 0:00:13.2]} 31. Kc2 {[%clk 0:00:02.5]} 31... Qxf2+ {[%clk
0:00:10.9]} 32. Kb1 {[%clk 0:00:01.9]} 32... Bxg3 {[%clk 0:00:10]} 33. Rh7+
{[%clk 0:00:02.5]} 33... Ke6 {[%clk 0:00:09.1]} 34. Qg4+ {[%clk 0:00:01.9]}
34... Qf5 {[%clk 0:00:09]} 35. Qg7 {[%clk 0:00:01.6]} 35... Qxd3+ {[%clk
0:00:07.7]} 36. Kc1 {[%clk 0:00:01.5]} 36... Bf4# {[%clk 0:00:07.7]} 0-1

[Event "Late-Titled-Tuesday-Blitz-September-12-2023"]
[Site "Chess.com"]
[Date "2023.09.12"]
[Round "8"]
[White "bascheyaro"]
[Black "Alex_Banzea"]
[Result "1/2-1/2"]
[WhiteElo "2829"]
[BlackElo "2671"]
[TimeControl "180+1"]
[EndTime "15:23:39 PDT"]
[Termination "Game drawn - insufficient material"]

1. d4 {[%clk 0:03:00.9]} 1... d5 {[%clk 0:03:00]} 2. Nf3 {[%clk 0:03:01]} 2...
Nf6 {[%clk 0:03:00.2]} 3. c4 {[%clk 0:03:01.3]} 3... e6 {[%clk 0:03:00.3]} 4.
Nc3 {[%clk 0:03:01.5]} 4... a6 {[%clk 0:03:00]} 5. cxd5 {[%clk 0:03:00.7]} 5...
exd5 {[%clk 0:03:00.9]} 6. Bg5 {[%clk 0:03:00.8]} 6... Be6 {[%clk 0:03:01.5]} 7.
e3 {[%clk 0:03:00.9]} 7... Nbd7 {[%clk 0:03:02.3]} 8. Bd3 {[%clk 0:03:01]} 8...
Bd6 {[%clk 0:03:02.7]} 9. Rc1 {[%clk 0:03:00.1]} 9... c6 {[%clk 0:03:02.5]} 10.
h3 {[%clk 0:02:59.1]} 10... h6 {[%clk 0:03:02.9]} 11. Bh4 {[%clk 0:02:59.1]}
11... Qc7 {[%clk 0:02:55.8]} 12. Bxf6 {[%clk 0:02:54.2]} 12... Nxf6 {[%clk
0:02:56.7]} 13. a3 {[%clk 0:02:52.8]} 13... O-O {[%clk 0:02:43.3]} 14. Qc2
{[%clk 0:02:52.8]} 14... Rfe8 {[%clk 0:02:42.8]} 15. O-O {[%clk 0:02:52.4]}
15... Qd7 {[%clk 0:02:38.8]} 16. Ne2 {[%clk 0:02:14.5]} 16... Bxh3 {[%clk
0:02:30.2]} 17. gxh3 {[%clk 0:02:14.5]} 17... Qxh3 {[%clk 0:02:31.1]} 18. Ng3
{[%clk 0:02:15]} 18... Bxg3 {[%clk 0:02:02.8]} 19. fxg3 {[%clk 0:02:14.7]} 19...
Qxg3+ {[%clk 0:02:03.7]} 20. Qg2 {[%clk 0:02:14.4]} 20... Qxg2+ {[%clk
0:01:55.5]} 21. Kxg2 {[%clk 0:02:15.3]} 21... Rxe3 {[%clk 0:01:55.4]} 22. Ne5
{[%clk 0:01:56.6]} 22... Ng4 {[%clk 0:01:44.1]} 23. Rce1 {[%clk 0:01:56.3]}
23... Rxe1 {[%clk 0:01:35.5]} 24. Rxe1 {[%clk 0:01:57.2]} 24... Nxe5 {[%clk
0:01:22.9]} 25. Rxe5 {[%clk 0:01:56.5]} 25... Kf8 {[%clk 0:01:22]} 26. Bf5
{[%clk 0:01:50.3]} 26... a5 {[%clk 0:01:08.9]} 27. Re3 {[%clk 0:01:45.9]} 27...
g6 {[%clk 0:01:01.8]} 28. Bh3 {[%clk 0:01:45.5]} 28... Re8 {[%clk 0:00:56]} 29.
Rxe8+ {[%clk 0:01:42.5]} 29... Kxe8 {[%clk 0:00:55.7]} 30. Bc8 {[%clk
0:01:42.4]} 30... b6 {[%clk 0:00:54.2]} 31. Kf3 {[%clk 0:01:26.7]} 31... Kd8
{[%clk 0:00:54.7]} 32. Bh3 {[%clk 0:01:26]} 32... Kc7 {[%clk 0:00:54.4]} 33. Kf4
{[%clk 0:01:20.7]} 33... Kd6 {[%clk 0:00:54.9]} 34. b4 {[%clk 0:01:05.5]} 34...
axb4 {[%clk 0:00:47.4]} 35. axb4 {[%clk 0:01:06.4]} 35... c5 {[%clk 0:00:48.3]}
36. bxc5+ {[%clk 0:00:28.8]} 36... bxc5 {[%clk 0:00:49.2]} 37. dxc5+ {[%clk
0:00:29.5]} 37... Kxc5 {[%clk 0:00:50.1]} 38. Ke5 {[%clk 0:00:30]} 38... d4
{[%clk 0:00:44]} 39. Bf1 {[%clk 0:00:29.6]} 39... h5 {[%clk 0:00:41.3]} 40. Kf6
{[%clk 0:00:28.4]} 40... h4 {[%clk 0:00:37.4]} 41. Kxf7 {[%clk 0:00:21.6]} 41...
g5 {[%clk 0:00:36.3]} 42. Kg6 {[%clk 0:00:21.7]} 42... g4 {[%clk 0:00:35.6]} 43.
Kg5 {[%clk 0:00:22.2]} 43... h3 {[%clk 0:00:31.3]} 44. Kxg4 {[%clk 0:00:21.7]}
44... h2 {[%clk 0:00:31.9]} 45. Bg2 {[%clk 0:00:22.3]} 45... d3 {[%clk
0:00:31.8]} 46. Kf3 {[%clk 0:00:22.4]} 46... Kd4 {[%clk 0:00:27.1]} 47. Kf2
{[%clk 0:00:21]} 47... Kc3 {[%clk 0:00:27.2]} 48. Bf3 {[%clk 0:00:21.4]} 48...
Kd2 {[%clk 0:00:18.4]} 49. Kg2 {[%clk 0:00:21.7]} 49... Ke3 {[%clk 0:00:19.1]}
50. Bh5 {[%clk 0:00:21.8]} 50... d2 {[%clk 0:00:18.3]} 51. Kxh2 {[%clk
0:00:22.1]} 51... d1=Q {[%clk 0:00:19.2]} 52. Bxd1 {[%clk 0:00:22]} 1/2-1/2

[Event "Late-Titled-Tuesday-Blitz-September-12-2023"]
[Site "Chess.com"]
[Date "2023.09.12"]
[Round "8"]
[White "AsaHoffmann"]
[Black "NovikovaGalina"]
[Result "0-1"]
[WhiteElo "2330"]
[BlackElo "2426"]
[TimeControl "180+1"]
[EndTime "15:23:43 PDT"]
[Termination "NovikovaGalina won on time"]

1. d4 {[%clk 0:02:51]} 1... e5 {[%clk 0:02:59.9]} 2. Nf3 {[%clk 0:02:49.8]} 2...
e4 {[%clk 0:02:59.2]} 3. Nfd2 {[%clk 0:02:49.2]} 3... d5 {[%clk 0:03:00.1]} 4.
Nb3 {[%clk 0:02:45.4]} 4... Bd6 {[%clk 0:02:49.1]} 5. c4 {[%clk 0:02:41.6]} 5...
c6 {[%clk 0:02:49.6]} 6. Nc3 {[%clk 0:02:40.5]} 6... Nf6 {[%clk 0:02:49.2]} 7.
Bg5 {[%clk 0:02:40]} 7... h6 {[%clk 0:02:39.1]} 8. Bxf6 {[%clk 0:02:39.3]} 8...
Qxf6 {[%clk 0:02:40]} 9. cxd5 {[%clk 0:02:38.3]} 9... e3 {[%clk 0:02:40.4]} 10.
fxe3 {[%clk 0:02:36.9]} 10... Qh4+ {[%clk 0:02:40]} 11. Kd2 {[%clk 0:02:30]}
11... O-O {[%clk 0:02:39.4]} 12. dxc6 {[%clk 0:02:15.2]} 12... Nxc6 {[%clk
0:02:39.1]} 13. Qe1 {[%clk 0:02:04.9]} 13... Qg5 {[%clk 0:02:34.2]} 14. Qf2
{[%clk 0:01:59]} 14... Bf5 {[%clk 0:02:29.4]} 15. Rd1 {[%clk 0:01:56]} 15...
Rac8 {[%clk 0:02:17.6]} 16. h4 {[%clk 0:01:54.6]} 16... Qg6 {[%clk 0:02:11.1]}
17. Rc1 {[%clk 0:01:21.9]} 17... Rfd8 {[%clk 0:02:08.3]} 18. h5 {[%clk 0:01:20]}
18... Qg5 {[%clk 0:02:08.2]} 19. Qh4 {[%clk 0:01:18.1]} 19... Be7 {[%clk
0:01:55.7]} 20. Qxg5 {[%clk 0:01:16.2]} 20... Bxg5 {[%clk 0:01:56.6]} 21. d5
{[%clk 0:01:00]} 21... Nb4 {[%clk 0:01:56.7]} 22. g4 {[%clk 0:00:47.9]} 22...
Nxd5 {[%clk 0:01:41.5]} 23. gxf5 {[%clk 0:00:38.6]} 23... Nxc3+ {[%clk
0:01:33.4]} 24. Ke1 {[%clk 0:00:35.4]} 24... Nxa2 {[%clk 0:01:24.6]} 25. Rxc8
{[%clk 0:00:32.5]} 25... Rxc8 {[%clk 0:01:25.5]} 26. Kf2 {[%clk 0:00:28.1]}
26... Rc2 {[%clk 0:01:25.9]} 27. Bg2 {[%clk 0:00:26.9]} 27... Rxb2 {[%clk
0:01:23.5]} 28. Nd4 {[%clk 0:00:26.6]} 28... Nb4 {[%clk 0:01:14.9]} 29. Rd1
{[%clk 0:00:21.9]} 29... b6 {[%clk 0:01:09.7]} 30. Nc6 {[%clk 0:00:16.5]} 30...
Nxc6 {[%clk 0:01:08.6]} 31. Bxc6 {[%clk 0:00:16]} 31... a5 {[%clk 0:01:05.8]}
32. Rd7 {[%clk 0:00:14.7]} 32... Kf8 {[%clk 0:00:22.3]} 33. Bd5 {[%clk
0:00:13.8]} 33... a4 {[%clk 0:00:15.1]} 34. Rxf7+ {[%clk 0:00:12.7]} 34... Ke8
{[%clk 0:00:15.7]} 35. Ra7 {[%clk 0:00:10]} 35... b5 {[%clk 0:00:14.9]} 36. e4
{[%clk 0:00:09.1]} 36... Rb4 {[%clk 0:00:08.3]} 37. e5 {[%clk 0:00:08.9]} 37...
Rf4+ {[%clk 0:00:07.9]} 38. Kg3 {[%clk 0:00:09]} 38... Rxf5 {[%clk 0:00:08.8]}
39. Bc6+ {[%clk 0:00:06.6]} 39... Kd8 {[%clk 0:00:08.5]} 40. e6 {[%clk
0:00:06.4]} 40... Re5 {[%clk 0:00:09.4]} 41. Rd7+ {[%clk 0:00:04.6]} 41... Kc8
{[%clk 0:00:09.2]} 42. Bd5 {[%clk 0:00:04.4]} 42... Re3+ {[%clk 0:00:07.2]} 43.
Kf2 {[%clk 0:00:02.5]} 43... a3 {[%clk 0:00:07.1]} 0-1

[Event "Late-Titled-Tuesday-Blitz-September-12-2023"]
[Site "Chess.com"]
[Date "2023.09.12"]
[Round "8"]
[White "BillieKimbah"]
[Black "Mops_2004"]
[Result "1-0"]
[WhiteElo "3017"]
[BlackElo "2717"]
[TimeControl "180+1"]
[EndTime "15:23:46 PDT"]
[Termination "BillieKimbah won by resignation"]

1. d4 {[%clk 0:03:00.9]} 1... g6 {[%clk 0:02:58.9]} 2. e4 {[%clk 0:03:00.6]}
2... Bg7 {[%clk 0:02:59.3]} 3. Nc3 {[%clk 0:02:59.8]} 3... d6 {[%clk 0:02:59.8]}
4. Be3 {[%clk 0:02:59.6]} 4... a6 {[%clk 0:02:59.8]} 5. Bd3 {[%clk 0:02:53.1]}
5... b5 {[%clk 0:02:56.3]} 6. a4 {[%clk 0:02:52.5]} 6... b4 {[%clk 0:02:56.1]}
7. Nce2 {[%clk 0:02:52.9]} 7... Nd7 {[%clk 0:02:55.6]} 8. Nf3 {[%clk 0:02:49.6]}
8... Bb7 {[%clk 0:02:54.1]} 9. c3 {[%clk 0:02:47.8]} 9... c5 {[%clk 0:02:42.3]}
10. O-O {[%clk 0:02:46.6]} 10... Ngf6 {[%clk 0:02:41.5]} 11. Ng3 {[%clk
0:02:46.3]} 11... O-O {[%clk 0:02:39.1]} 12. cxb4 {[%clk 0:02:45.9]} 12... Ng4
{[%clk 0:02:37.5]} 13. bxc5 {[%clk 0:02:33.2]} 13... dxc5 {[%clk 0:02:37.1]} 14.
d5 {[%clk 0:02:30]} 14... Nxe3 {[%clk 0:02:30.8]} 15. fxe3 {[%clk 0:02:30.9]}
15... Rb8 {[%clk 0:02:22.8]} 16. Rb1 {[%clk 0:02:27]} 16... Ne5 {[%clk
0:02:22.2]} 17. Nxe5 {[%clk 0:02:24.3]} 17... Bxe5 {[%clk 0:02:21.8]} 18. b3
{[%clk 0:02:24.4]} 18... Qd6 {[%clk 0:02:21.4]} 19. Rf3 {[%clk 0:02:21.6]} 19...
Bc8 {[%clk 0:01:53.4]} 20. Be2 {[%clk 0:01:49.3]} 20... Bg4 {[%clk 0:01:32.8]}
21. Rf2 {[%clk 0:01:44.5]} 21... Bxe2 {[%clk 0:01:21.4]} 22. Qxe2 {[%clk
0:01:44.4]} 22... Bxg3 {[%clk 0:01:21.6]} 23. hxg3 {[%clk 0:01:44.1]} 23... Qxg3
{[%clk 0:01:22.5]} 24. Rf3 {[%clk 0:01:35.2]} 24... Qe5 {[%clk 0:01:20.3]} 25.
Rf4 {[%clk 0:01:30.4]} 25... Rb4 {[%clk 0:01:17.7]} 26. Qc2 {[%clk 0:01:22.2]}
26... Rfb8 {[%clk 0:01:08.5]} 27. Rbf1 {[%clk 0:01:21.3]} 27... f6 {[%clk
0:01:02.7]} 28. Qxc5 {[%clk 0:01:19.3]} 28... Rxe4 {[%clk 0:01:00.9]} 29. Rxe4
{[%clk 0:01:08.9]} 29... Qxe4 {[%clk 0:01:01.3]} 30. Rf4 {[%clk 0:01:03.2]}
30... Qe5 {[%clk 0:00:58.5]} 31. b4 {[%clk 0:01:02.4]} 31... Rd8 {[%clk
0:00:49.8]} 32. d6 {[%clk 0:00:27.7]} 32... Qxd6 {[%clk 0:00:39]} 33. Rd4 {[%clk
0:00:27.1]} 33... Qb8 {[%clk 0:00:33.5]} 34. Qxe7 {[%clk 0:00:22.1]} 34... Rxd4
{[%clk 0:00:30.6]} 35. exd4 {[%clk 0:00:23]} 35... Qf4 {[%clk 0:00:26.9]} 36.
Qd8+ {[%clk 0:00:18.8]} 36... Kg7 {[%clk 0:00:26]} 37. Qd7+ {[%clk 0:00:19.2]}
37... Kh6 {[%clk 0:00:24.6]} 38. Qh3+ {[%clk 0:00:19.7]} 38... Kg5 {[%clk
0:00:23.3]} 39. Qc3 {[%clk 0:00:19.2]} 39... Qe4 {[%clk 0:00:17.4]} 40. Kf2
{[%clk 0:00:17.8]} 40... h5 {[%clk 0:00:15.2]} 41. Qe3+ {[%clk 0:00:16.9]} 41...
Kf5 {[%clk 0:00:15.6]} 42. Qxe4+ {[%clk 0:00:12.9]} 42... Kxe4 {[%clk
0:00:16.5]} 43. b5 {[%clk 0:00:13.1]} 43... axb5 {[%clk 0:00:16.7]} 44. a5
{[%clk 0:00:13]} 44... Kd5 {[%clk 0:00:09.4]} 45. a6 {[%clk 0:00:12.8]} 45...
Kc6 {[%clk 0:00:09.4]} 46. d5+ {[%clk 0:00:13.2]} 46... Kb6 {[%clk 0:00:08.1]}
47. d6 {[%clk 0:00:13.4]} 1-0

[Event "Late-Titled-Tuesday-Blitz-September-12-2023"]
[Site "Chess.com"]
[Date "2023.09.12"]
[Round "8"]
[White "Fandorine"]
[Black "ameetghasi100"]
[Result "1-0"]
[WhiteElo "2905"]
[BlackElo "2693"]
[TimeControl "180+1"]
[EndTime "15:23:46 PDT"]
[Termination "Fandorine won on time"]

1. e4 {[%clk 0:03:00.9]} 1... g6 {[%clk 0:03:00.1]} 2. d4 {[%clk 0:02:59.1]}
2... Bg7 {[%clk 0:03:01]} 3. Nc3 {[%clk 0:02:59.8]} 3... d6 {[%clk 0:03:01.6]}
4. Be3 {[%clk 0:03:00]} 4... a6 {[%clk 0:03:01.5]} 5. h4 {[%clk 0:03:00.6]} 5...
h6 {[%clk 0:03:00.1]} 6. Qd2 {[%clk 0:02:59.8]} 6... b5 {[%clk 0:03:00.3]} 7. f3
{[%clk 0:02:59.2]} 7... Bb7 {[%clk 0:03:00.6]} 8. O-O-O {[%clk 0:02:55.9]} 8...
Nd7 {[%clk 0:03:00.9]} 9. Nh3 {[%clk 0:02:55.5]} 9... Nb6 {[%clk 0:02:58.8]} 10.
Re1 {[%clk 0:02:45]} 10... e6 {[%clk 0:02:31.1]} 11. Kb1 {[%clk 0:02:42.5]}
11... b4 {[%clk 0:02:27.9]} 12. Nd1 {[%clk 0:02:40.1]} 12... a5 {[%clk 0:02:28]}
13. Ndf2 {[%clk 0:02:33.2]} 13... Ne7 {[%clk 0:02:09.7]} 14. g4 {[%clk
0:02:23.9]} 14... d5 {[%clk 0:01:56.9]} 15. Bb5+ {[%clk 0:02:10.9]} 15... Bc6
{[%clk 0:01:52.5]} 16. Be2 {[%clk 0:02:03.1]} 16... Nc4 {[%clk 0:01:47.9]} 17.
Bxc4 {[%clk 0:02:02.2]} 17... dxc4 {[%clk 0:01:48.8]} 18. Ka1 {[%clk 0:01:58.2]}
18... Qd7 {[%clk 0:01:38.5]} 19. Rhf1 {[%clk 0:01:35.8]} 19... h5 {[%clk
0:01:16.4]} 20. gxh5 {[%clk 0:01:27.6]} 20... Rxh5 {[%clk 0:01:00.9]} 21. c3
{[%clk 0:01:26.7]} 21... Rb5 {[%clk 0:00:48.5]} 22. Ng4 {[%clk 0:01:08.2]} 22...
Rab8 {[%clk 0:00:41.9]} 23. Bg5 {[%clk 0:00:47.1]} 23... bxc3 {[%clk 0:00:41.6]}
24. bxc3 {[%clk 0:00:46.7]} 24... Ng8 {[%clk 0:00:20.6]} 25. Rb1 {[%clk
0:00:31.2]} 25... Ba8 {[%clk 0:00:18.7]} 26. Rxb5 {[%clk 0:00:27.8]} 26... Qxb5
{[%clk 0:00:19.6]} 27. Qc2 {[%clk 0:00:20.2]} 27... c5 {[%clk 0:00:18]} 28. Be3
{[%clk 0:00:19.2]} 28... cxd4 {[%clk 0:00:13.3]} 29. Bxd4 {[%clk 0:00:20.1]}
29... Bxd4 {[%clk 0:00:12.7]} 30. cxd4 {[%clk 0:00:21]} 30... c3 {[%clk
0:00:13.3]} 31. Rb1 {[%clk 0:00:18]} 31... Qxb1+ {[%clk 0:00:09.4]} 32. Qxb1
{[%clk 0:00:18.9]} 32... Rxb1+ {[%clk 0:00:09]} 33. Kxb1 {[%clk 0:00:19.8]}
33... f5 {[%clk 0:00:09.7]} 34. Ngf2 {[%clk 0:00:20.2]} 34... Nf6 {[%clk
0:00:09.9]} 35. Ng5 {[%clk 0:00:20.9]} 35... Ke7 {[%clk 0:00:05.7]} 36. Kc2
{[%clk 0:00:21]} 36... fxe4 {[%clk 0:00:05.4]} 37. fxe4 {[%clk 0:00:21.9]} 37...
e5 {[%clk 0:00:05.3]} 38. Kxc3 {[%clk 0:00:20.3]} 38... exd4+ {[%clk 0:00:03.8]}
39. Kxd4 {[%clk 0:00:21.2]} 39... Bc6 {[%clk 0:00:03.3]} 40. a3 {[%clk
0:00:20.4]} 40... Nd7 {[%clk 0:00:03.5]} 41. Nd3 {[%clk 0:00:20.2]} 41... Bb5
{[%clk 0:00:03.4]} 42. Nf4 {[%clk 0:00:20.6]} 42... Nf8 {[%clk 0:00:03.5]} 43.
e5 {[%clk 0:00:20.3]} 43... Bd7 {[%clk 0:00:03.4]} 44. Nd5+ {[%clk 0:00:20.4]}
44... Kd8 {[%clk 0:00:03.1]} 45. Kc5 {[%clk 0:00:20.5]} 45... Bf5 {[%clk
0:00:03.2]} 46. Kd6 {[%clk 0:00:20.5]} 46... Be4 {[%clk 0:00:02.4]} 47. Nxe4
{[%clk 0:00:20.4]} 1-0